[Event "*** Titled Tuesday 3|2 Blitz"]
[Site "Chess.com"]
[Date "2015.06.02"]
[Round "4"]
[White "Viaje"]
[Black "HansCoolNiemann"]
[Result "1-0"]
[WhiteElo "2170"]
[BlackElo "1961"]
[TimeControl "180+2"]
[EndTime "11:46:02 PDT"]
[Termination "Viaje won on time"]

1. d4 {[%clk 0:03:01.9]} 1... Nf6 {[%clk 0:03:00.6]} 2. c4 {[%clk 0:03:02.3]}
2... g6 {[%clk 0:03:01.6]} 3. Nc3 {[%clk 0:03:02.4]} 3... d5 {[%clk 0:03:02.3]}
4. cxd5 {[%clk 0:03:04.3]} 4... Nxd5 {[%clk 0:03:03.4]} 5. e4 {[%clk 0:03:05.9]}
5... Nxc3 {[%clk 0:03:04.1]} 6. bxc3 {[%clk 0:03:07.8]} 6... Bg7 {[%clk
0:03:05.6]} 7. Nf3 {[%clk 0:03:08.8]} 7... c5 {[%clk 0:03:06.4]} 8. Rb1 {[%clk
0:03:09.4]} 8... O-O {[%clk 0:03:06.4]} 9. Be2 {[%clk 0:03:09.8]} 9... cxd4
{[%clk 0:03:07.4]} 10. cxd4 {[%clk 0:03:10.4]} 10... Qa5+ {[%clk 0:03:09]} 11.
Bd2 {[%clk 0:03:11.3]} 11... Qxa2 {[%clk 0:03:09.9]} 12. O-O {[%clk 0:03:12.3]}
12... b6 {[%clk 0:03:06.8]} 13. Qc1 {[%clk 0:03:12.9]} 13... Bb7 {[%clk
0:03:02.5]} 14. Bc4 {[%clk 0:03:12.7]} 14... Qa4 {[%clk 0:03:01.3]} 15. Bb5
{[%clk 0:03:13.5]} 15... Qa2 {[%clk 0:03:00.9]} 16. Bc4 {[%clk 0:03:14.6]} 16...
Qa4 {[%clk 0:02:58.3]} 17. Bb5 {[%clk 0:03:15.5]} 17... Qa2 {[%clk 0:02:57.5]}
18. Re1 {[%clk 0:03:16.5]} 18... Rc8 {[%clk 0:02:55.9]} 19. Qd1 {[%clk
0:03:17.5]} 19... Qc2 {[%clk 0:02:44.9]} 20. Qe2 {[%clk 0:03:17.8]} 20... Qc7
{[%clk 0:02:42.9]} 21. h4 {[%clk 0:03:11.7]} 21... Nc6 {[%clk 0:02:40.1]} 22.
Be3 {[%clk 0:03:08]} 22... Qd6 {[%clk 0:02:22.6]} 23. e5 {[%clk 0:02:50.6]}
23... Qd8 {[%clk 0:02:13.4]} 24. h5 {[%clk 0:02:46.2]} 24... e6 {[%clk 0:02:14]}
25. Red1 {[%clk 0:02:37.1]} 25... Qd5 {[%clk 0:01:58.4]} 26. Ng5 {[%clk
0:02:34.2]} 26... Nxe5 {[%clk 0:01:17.7]} 27. f3 {[%clk 0:01:55.9]} 27... Nc4
{[%clk 0:01:11.4]} 28. hxg6 {[%clk 0:01:55.1]} 28... hxg6 {[%clk 0:01:08.8]} 29.
Bxc4 {[%clk 0:01:53.2]} 29... Rxc4 {[%clk 0:01:01.7]} 30. Qf2 {[%clk 0:01:52.9]}
30... Rac8 {[%clk 0:01:00.1]} 31. Qh4 {[%clk 0:01:49.5]} 31... f6 {[%clk
0:00:36.5]} 32. Qh7+ {[%clk 0:01:39.5]} 32... Kf8 {[%clk 0:00:36.2]} 33. Ne4
{[%clk 0:01:39.8]} 33... Qh5 {[%clk 0:00:16.3]} 34. Qxh5 {[%clk 0:01:36.8]}
34... gxh5 {[%clk 0:00:18.2]} 35. Nd6 {[%clk 0:01:38.2]} 35... Rc3 {[%clk
0:00:17.5]} 36. Nxc8 {[%clk 0:01:36.7]} 36... Rxc8 {[%clk 0:00:16.4]} 37. Rdc1
{[%clk 0:01:35.6]} 37... Rb8 {[%clk 0:00:14.1]} 38. Rc7 {[%clk 0:01:33.6]} 38...
f5 {[%clk 0:00:12.9]} 39. Kh2 {[%clk 0:01:33.3]} 39... e5 {[%clk 0:00:12.5]} 40.
Bg5 {[%clk 0:01:25.5]} 40... exd4 {[%clk 0:00:11.7]} 41. Bf4 {[%clk 0:01:26.7]}
41... Bf6 {[%clk 0:00:05.4]} 42. Rb5 {[%clk 0:01:18.2]} 42... Bd8 {[%clk
0:00:03]} 43. Rh7 {[%clk 0:01:17]} 1-0

[Event "*** Titled Tuesday 3|2 Blitz"]
[Site "Chess.com"]
[Date "2015.06.02"]
[Round "4"]
[White "Danirod"]
[Black "jup1978"]
[Result "1-0"]
[WhiteElo "2392"]
[BlackElo "2172"]
[TimeControl "180+2"]
[EndTime "11:46:03 PDT"]
[Termination "Danirod won by resignation"]

1. e4 {[%clk 0:03:00.3]} 1... e5 {[%clk 0:02:58.3]} 2. Nf3 {[%clk 0:03:01]} 2...
Nc6 {[%clk 0:02:56.7]} 3. Bc4 {[%clk 0:03:01.9]} 3... Bc5 {[%clk 0:02:49.5]} 4.
c3 {[%clk 0:03:02.9]} 4... Nf6 {[%clk 0:02:45.5]} 5. d4 {[%clk 0:03:02.5]} 5...
exd4 {[%clk 0:02:45.9]} 6. cxd4 {[%clk 0:03:04.4]} 6... Bb4+ {[%clk 0:02:46.3]}
7. Bd2 {[%clk 0:03:05.7]} 7... Bxd2+ {[%clk 0:02:35.3]} 8. Nbxd2 {[%clk
0:03:06.4]} 8... d5 {[%clk 0:02:31.4]} 9. exd5 {[%clk 0:03:07.5]} 9... Nxd5
{[%clk 0:02:33.3]} 10. Qb3 {[%clk 0:03:08.7]} 10... Na5 {[%clk 0:02:28.4]} 11.
Qa4+ {[%clk 0:03:09.9]} 11... c6 {[%clk 0:02:28.9]} 12. Bxd5 {[%clk 0:02:34.2]}
12... Qxd5 {[%clk 0:02:27.3]} 13. O-O {[%clk 0:02:35.1]} 13... O-O {[%clk
0:02:27.6]} 14. Rac1 {[%clk 0:02:36.1]} 14... b6 {[%clk 0:02:22.5]} 15. b4
{[%clk 0:02:36.2]} 15... Nb7 {[%clk 0:02:09]} 16. Qxc6 {[%clk 0:02:36.4]} 16...
Qxa2 {[%clk 0:01:58.9]} 17. Rfe1 {[%clk 0:02:36.9]} 17... Rb8 {[%clk 0:01:51]}
18. Ra1 {[%clk 0:02:32.2]} 18... Qb2 {[%clk 0:01:30.4]} 19. Reb1 {[%clk
0:02:32]} 19... Bd7 {[%clk 0:01:28.6]} 20. Qxd7 {[%clk 0:02:32.6]} 20... Qc2
{[%clk 0:01:27.4]} 21. Rxa7 {[%clk 0:02:23.3]} 21... Nd8 {[%clk 0:01:28]} 22.
Qa4 {[%clk 0:02:04.1]} 22... Qd3 {[%clk 0:01:25.7]} 23. Qb3 {[%clk 0:02:02.8]}
23... Qf5 {[%clk 0:01:25.3]} 24. h3 {[%clk 0:02:01.9]} 24... Nc6 {[%clk
0:01:25.9]} 25. Rc7 {[%clk 0:01:55]} 25... Nd8 {[%clk 0:01:26.8]} 26. Re1 {[%clk
0:01:53.8]} 26... Ne6 {[%clk 0:01:26.7]} 27. Rc6 {[%clk 0:01:33.5]} 27... Kh8
{[%clk 0:01:20]} 28. Re5 {[%clk 0:01:24.3]} 28... Qf4 {[%clk 0:01:19.4]} 29. Qe3
{[%clk 0:01:24.4]} 29... Qxe3 {[%clk 0:01:07.8]} 30. fxe3 {[%clk 0:01:25.3]}
30... Rfd8 {[%clk 0:01:05.9]} 31. Rb5 {[%clk 0:01:23.3]} 31... Ra8 {[%clk
0:01:06.2]} 32. Rcxb6 {[%clk 0:01:24.1]} 32... h6 {[%clk 0:01:07.8]} 33. Rc6
{[%clk 0:01:21.8]} 33... Ra1+ {[%clk 0:01:08.4]} 34. Kf2 {[%clk 0:01:22.2]}
34... Ra2 {[%clk 0:01:09.1]} 35. Rb7 {[%clk 0:01:20.5]} 35... Kg8 {[%clk
0:01:02.7]} 36. b5 {[%clk 0:01:19.5]} 36... Rda8 {[%clk 0:00:57.5]} 37. Ra6
{[%clk 0:01:19.9]} 37... R2xa6 {[%clk 0:00:56.4]} 38. bxa6 {[%clk 0:01:21.8]}
38... Rxa6 {[%clk 0:00:58.3]} 39. Ne5 {[%clk 0:01:22.4]} 39... Ra2 {[%clk
0:00:58.5]} 40. Ke2 {[%clk 0:01:23.2]} 40... Ng5 {[%clk 0:00:59.2]} 41. Kd3
{[%clk 0:01:11.7]} 41... f6 {[%clk 0:00:59.8]} 42. h4 {[%clk 0:01:09.5]} 42...
Ne6 {[%clk 0:00:56.6]} 43. Rb8+ {[%clk 0:01:06.5]} 43... Kh7 {[%clk 0:00:57]}
44. Nef3 {[%clk 0:01:07.9]} 44... Ra3+ {[%clk 0:00:56.9]} 45. Ke2 {[%clk
0:01:08.8]} 45... h5 {[%clk 0:00:58.3]} 46. Rb6 {[%clk 0:01:08.1]} 46... Nc7
{[%clk 0:00:57.5]} 47. e4 {[%clk 0:01:07.5]} 47... Na6 {[%clk 0:00:53.5]} 48. d5
{[%clk 0:01:06.8]} 48... Nc5 {[%clk 0:00:53.9]} 49. Rc6 {[%clk 0:01:04.9]} 49...
Na4 {[%clk 0:00:52]} 50. d6 {[%clk 0:01:01.3]} 50... Nc3+ {[%clk 0:00:52.8]} 51.
Rxc3 {[%clk 0:01:01.6]} 51... Rxc3 {[%clk 0:00:54.7]} 52. d7 {[%clk 0:01:02.4]}
1-0

[Event "*** Titled Tuesday 3|2 Blitz"]
[Site "Chess.com"]
[Date "2015.06.02"]
[Round "4"]
[White "AlexanderL"]
[Black "JustaTrickstar"]
[Result "1-0"]
[WhiteElo "2527"]
[BlackElo "2437"]
[TimeControl "180+2"]
[EndTime "11:46:21 PDT"]
[Termination "AlexanderL won by resignation"]

1. d4 {[%clk 0:03:01.9]} 1... f5 {[%clk 0:02:58.4]} 2. Nc3 {[%clk 0:03:02.3]}
2... Nf6 {[%clk 0:02:57.4]} 3. Bg5 {[%clk 0:03:03.3]} 3... d5 {[%clk 0:02:58.1]}
4. e3 {[%clk 0:03:03.3]} 4... Be6 {[%clk 0:02:59]} 5. Nh3 {[%clk 0:03:03]} 5...
Nbd7 {[%clk 0:02:57.6]} 6. Bd3 {[%clk 0:03:00.2]} 6... g6 {[%clk 0:02:56.2]} 7.
Bf4 {[%clk 0:02:57.3]} 7... Bg7 {[%clk 0:02:49.9]} 8. Nb5 {[%clk 0:02:54.7]}
8... Rc8 {[%clk 0:02:40]} 9. Nxa7 {[%clk 0:02:55]} 9... Ra8 {[%clk 0:02:41]} 10.
Nb5 {[%clk 0:02:55.6]} 10... Rc8 {[%clk 0:02:42.6]} 11. Ng5 {[%clk 0:02:40.8]}
11... Bg8 {[%clk 0:02:41.6]} 12. Nf3 {[%clk 0:02:41.3]} 12... c6 {[%clk
0:02:40.4]} 13. Nc3 {[%clk 0:02:42]} 13... Ne4 {[%clk 0:02:35.3]} 14. Ne2 {[%clk
0:02:41.2]} 14... Qb6 {[%clk 0:02:34.4]} 15. O-O {[%clk 0:02:38.6]} 15... h6
{[%clk 0:02:28.4]} 16. Rb1 {[%clk 0:02:33.8]} 16... g5 {[%clk 0:02:23.6]} 17.
Be5 {[%clk 0:02:34.6]} 17... Nxe5 {[%clk 0:02:23.3]} 18. Nxe5 {[%clk 0:02:35.6]}
18... e6 {[%clk 0:02:18.1]} 19. c4 {[%clk 0:02:33.8]} 19... Bh7 {[%clk
0:02:13.2]} 20. cxd5 {[%clk 0:02:31.2]} 20... exd5 {[%clk 0:02:11.4]} 21. Ng3
{[%clk 0:02:27.1]} 21... Qc7 {[%clk 0:01:33.2]} 22. Qh5+ {[%clk 0:02:25.7]}
22... Kf8 {[%clk 0:01:32.7]} 23. Ng6+ {[%clk 0:02:23.2]} 23... Bxg6 {[%clk
0:01:12]} 24. Qxg6 {[%clk 0:02:25.1]} 24... Qf7 {[%clk 0:01:13.1]} 25. Qxf7+
{[%clk 0:02:21.4]} 25... Kxf7 {[%clk 0:01:15]} 26. Nxf5 {[%clk 0:02:22.7]} 26...
Nd2 {[%clk 0:01:16]} 27. Nd6+ {[%clk 0:02:23.1]} 27... Ke7 {[%clk 0:01:15]} 28.
Nxc8+ {[%clk 0:02:24]} 28... Rxc8 {[%clk 0:01:16.9]} 29. Rfd1 {[%clk 0:02:21.9]}
29... Nxb1 {[%clk 0:01:17.4]} 30. Rxb1 {[%clk 0:02:23.8]} 30... b6 {[%clk
0:01:15.4]} 31. Kf1 {[%clk 0:02:19.7]} 31... Kd6 {[%clk 0:01:16.3]} 32. Ke2
{[%clk 0:02:19.3]} 32... c5 {[%clk 0:01:17.6]} 33. dxc5+ {[%clk 0:02:17.2]}
33... bxc5 {[%clk 0:01:19.5]} 34. b3 {[%clk 0:02:16.8]} 34... c4 {[%clk
0:01:20.7]} 35. bxc4 {[%clk 0:02:17.7]} 35... dxc4 {[%clk 0:01:22.6]} 36. Bc2
{[%clk 0:02:18.9]} 36... Ra8 {[%clk 0:01:22.8]} 37. a4 {[%clk 0:02:19.6]} 37...
c3 {[%clk 0:01:13.3]} 38. Rb5 {[%clk 0:02:17.9]} 38... Rd8 {[%clk 0:01:09.5]}
39. Rb7 {[%clk 0:02:06.7]} 39... Bf8 {[%clk 0:01:06.2]} 40. Bd3 {[%clk
0:01:56.9]} 40... Kc6 {[%clk 0:00:58.6]} 41. Rb5 {[%clk 0:01:39.1]} 41... Bd6
{[%clk 0:00:51.8]} 42. Be4+ {[%clk 0:01:39.4]} 42... Kd7 {[%clk 0:00:51.5]} 43.
g3 {[%clk 0:01:37.6]} 43... Ke6 {[%clk 0:00:16.5]} 44. a5 {[%clk 0:01:37.6]}
44... Re8 {[%clk 0:00:12.7]} 45. a6 {[%clk 0:01:35.5]} 45... Re7 {[%clk
0:00:14.3]} 46. Kd3 {[%clk 0:01:29.3]} 46... Kf6 {[%clk 0:00:11.2]} 47. f3
{[%clk 0:01:29.4]} 47... Rc7 {[%clk 0:00:09.5]} 48. Kc2 {[%clk 0:01:30.5]} 48...
Bc5 {[%clk 0:00:10.2]} 49. Rxc5 {[%clk 0:01:30.5]} 49... Rxc5 {[%clk 0:00:10.4]}
50. a7 {[%clk 0:01:31.5]} 50... Ra5 {[%clk 0:00:12.3]} 1-0

[Event "*** Titled Tuesday 3|2 Blitz"]
[Site "Chess.com"]
[Date "2015.06.02"]
[Round "4"]
[White "Hikaru"]
[Black "kleinebeer98"]
[Result "1-0"]
[WhiteElo "2805"]
[BlackElo "2273"]
[TimeControl "180+2"]
[EndTime "11:46:27 PDT"]
[Termination "Hikaru won by checkmate"]

1. e4 {[%clk 0:03:01.9]} 1... c5 {[%clk 0:02:58.1]} 2. Nf3 {[%clk 0:03:01.2]}
2... d6 {[%clk 0:02:58]} 3. Bb5+ {[%clk 0:03:02]} 3... Nc6 {[%clk 0:02:58.3]} 4.
O-O {[%clk 0:03:02.4]} 4... Bd7 {[%clk 0:02:59.5]} 5. Re1 {[%clk 0:03:03.4]}
5... Nf6 {[%clk 0:02:58.7]} 6. Nc3 {[%clk 0:03:02.7]} 6... a6 {[%clk 0:02:38.3]}
7. Bxc6 {[%clk 0:03:01.9]} 7... Bxc6 {[%clk 0:02:40.2]} 8. d4 {[%clk 0:03:03.7]}
8... cxd4 {[%clk 0:02:40.5]} 9. Nxd4 {[%clk 0:03:03.5]} 9... Rc8 {[%clk
0:02:35.9]} 10. Bg5 {[%clk 0:03:03.1]} 10... e6 {[%clk 0:02:32.4]} 11. Nd5
{[%clk 0:03:00.4]} 11... Be7 {[%clk 0:02:27]} 12. Nxe7 {[%clk 0:02:58.9]} 12...
Qxe7 {[%clk 0:02:28.9]} 13. Nf5 {[%clk 0:02:59.3]} 13... exf5 {[%clk 0:02:25]}
14. exf5 {[%clk 0:03:01.2]} 14... Be4 {[%clk 0:02:24.8]} 15. f3 {[%clk
0:02:58.3]} 15... d5 {[%clk 0:02:21]} 16. fxe4 {[%clk 0:02:58.3]} 16... Qc5+
{[%clk 0:02:18.5]} 17. Be3 {[%clk 0:02:59.1]} 17... Qc4 {[%clk 0:01:54.2]} 18.
b3 {[%clk 0:02:49.5]} 18... Qb5 {[%clk 0:01:30.6]} 19. exd5 {[%clk 0:02:48.6]}
19... O-O {[%clk 0:01:30.4]} 20. c4 {[%clk 0:02:49.7]} 20... Qd7 {[%clk
0:01:31.3]} 21. Bd4 {[%clk 0:02:50.3]} 21... Ne8 {[%clk 0:01:21.3]} 22. Qg4
{[%clk 0:02:49.6]} 22... f6 {[%clk 0:01:21.3]} 23. Re6 {[%clk 0:02:49.5]} 23...
b5 {[%clk 0:01:21]} 24. c5 {[%clk 0:02:35.3]} 24... Qxd5 {[%clk 0:01:19.4]} 25.
Rae1 {[%clk 0:02:36.9]} 25... h5 {[%clk 0:01:16]} 26. Qe4 {[%clk 0:02:36.5]}
26... Nc7 {[%clk 0:01:12]} 27. Qxd5 {[%clk 0:02:35.7]} 27... Nxd5 {[%clk
0:01:13.9]} 28. Rxa6 {[%clk 0:02:37.2]} 28... Ra8 {[%clk 0:01:12.8]} 29. Rd6
{[%clk 0:02:35.3]} 29... Nb4 {[%clk 0:01:04.8]} 30. c6 {[%clk 0:02:36.5]} 30...
Ra6 {[%clk 0:00:55.4]} 31. Bc5 {[%clk 0:02:27.8]} 31... Nxc6 {[%clk 0:00:55.7]}
32. Ree6 {[%clk 0:02:29.4]} 32... Rc8 {[%clk 0:00:55.7]} 33. b4 {[%clk
0:02:30.8]} 33... h4 {[%clk 0:00:42.6]} 34. h3 {[%clk 0:02:28.7]} 34... Kh7
{[%clk 0:00:40.5]} 35. Kh2 {[%clk 0:02:13.9]} 35... Kg8 {[%clk 0:00:37.3]} 36.
a4 {[%clk 0:02:13.1]} 36... Nxb4 {[%clk 0:00:34.6]} 37. Bxb4 {[%clk 0:02:03.3]}
37... Rxd6 {[%clk 0:00:32.8]} 38. Rxd6 {[%clk 0:02:01.9]} 38... bxa4 {[%clk
0:00:33.5]} 39. Rd4 {[%clk 0:02:03]} 39... Rb8 {[%clk 0:00:32.2]} 40. Ba3 {[%clk
0:02:03.5]} 40... Rb5 {[%clk 0:00:32.8]} 41. Rxh4 {[%clk 0:02:04]} 41... Rxf5
{[%clk 0:00:33.6]} 42. Rxa4 {[%clk 0:02:05]} 42... Rb5 {[%clk 0:00:33.1]} 43.
Ra7 {[%clk 0:02:06.1]} 43... Kh7 {[%clk 0:00:30.7]} 44. Bd6 {[%clk 0:02:06]}
44... Rf5 {[%clk 0:00:31.3]} 45. Bf8 {[%clk 0:02:07.1]} 45... Rg5 {[%clk
0:00:32.3]} 46. h4 {[%clk 0:02:07.2]} 46... Rg4 {[%clk 0:00:33.1]} 47. Kh3
{[%clk 0:02:08.3]} 47... f5 {[%clk 0:00:34.5]} 48. Rf7 {[%clk 0:02:09.2]} 48...
Kg8 {[%clk 0:00:26.8]} 49. Rxf5 {[%clk 0:02:08.5]} 49... Rc4 {[%clk 0:00:26.4]}
50. Bc5 {[%clk 0:02:08.8]} 50... g6 {[%clk 0:00:26.8]} 51. Rg5 {[%clk
0:02:09.5]} 51... Rc3+ {[%clk 0:00:27.7]} 52. g3 {[%clk 0:02:10.9]} 52... Kh7
{[%clk 0:00:28.5]} 53. Bd6 {[%clk 0:02:11.8]} 53... Rc6 {[%clk 0:00:28.9]} 54.
Bf4 {[%clk 0:02:13.7]} 54... Re6 {[%clk 0:00:29]} 55. Re5 {[%clk 0:02:15.6]}
55... Rf6 {[%clk 0:00:29.7]} 56. Re7+ {[%clk 0:02:16.7]} 56... Kg8 {[%clk
0:00:30.5]} 57. Be5 {[%clk 0:02:18.1]} 57... Rf5 {[%clk 0:00:30.1]} 58. Kg4
{[%clk 0:02:19.6]} 58... Kf8 {[%clk 0:00:30.4]} 59. Bd6 {[%clk 0:02:20.3]} 59...
Kg8 {[%clk 0:00:31.5]} 60. Re5 {[%clk 0:02:19.9]} 60... Rf6 {[%clk 0:00:30.9]}
61. Be7 {[%clk 0:02:21.3]} 61... Rc6 {[%clk 0:00:31.5]} 62. Kg5 {[%clk
0:02:22.6]} 62... Kh7 {[%clk 0:00:31.6]} 63. Bc5 {[%clk 0:02:24]} 63... Kg8
{[%clk 0:00:31.9]} 64. Re8+ {[%clk 0:02:24.6]} 64... Kg7 {[%clk 0:00:31.1]} 65.
Re7+ {[%clk 0:02:25.1]} 65... Kg8 {[%clk 0:00:32.2]} 66. Bd4 {[%clk 0:02:25.8]}
66... Rd6 {[%clk 0:00:29.5]} 67. Bf6 {[%clk 0:02:26.9]} 67... Rc6 {[%clk
0:00:28.4]} 68. Kxg6 {[%clk 0:02:27.8]} 68... Kf8 {[%clk 0:00:29.9]} 69. h5
{[%clk 0:02:28.7]} 69... Kg8 {[%clk 0:00:29.7]} 70. Re8# {[%clk 0:02:29.4]} 1-0

[Event "*** Titled Tuesday 3|2 Blitz"]
[Site "Chess.com"]
[Date "2015.06.02"]
[Round "4"]
[White "jlandaw"]
[Black "Schemato"]
[Result "1-0"]
[WhiteElo "2311"]
[BlackElo "2046"]
[TimeControl "180+2"]
[EndTime "11:46:36 PDT"]
[Termination "jlandaw won on time"]

1. e4 {[%clk 0:03:01.9]} 1... e6 {[%clk 0:03:00.8]} 2. d4 {[%clk 0:03:01.5]}
2... d5 {[%clk 0:03:02]} 3. e5 {[%clk 0:03:01.9]} 3... b6 {[%clk 0:03:02.5]} 4.
c3 {[%clk 0:03:03.6]} 4... Qd7 {[%clk 0:02:59.2]} 5. Bd3 {[%clk 0:02:57.9]} 5...
Ba6 {[%clk 0:02:59.1]} 6. Bc2 {[%clk 0:02:56.9]} 6... c5 {[%clk 0:02:57.6]} 7.
Ne2 {[%clk 0:02:56]} 7... Nc6 {[%clk 0:02:56.9]} 8. Be3 {[%clk 0:02:47.5]} 8...
h5 {[%clk 0:02:46.3]} 9. a3 {[%clk 0:02:44.6]} 9... Bxe2 {[%clk 0:02:40.5]} 10.
Qxe2 {[%clk 0:02:39.8]} 10... c4 {[%clk 0:02:39.4]} 11. f4 {[%clk 0:02:34.4]}
11... Nge7 {[%clk 0:02:34.8]} 12. Nd2 {[%clk 0:02:31.2]} 12... Nf5 {[%clk
0:02:34.2]} 13. Bf2 {[%clk 0:02:19.2]} 13... Be7 {[%clk 0:02:33.5]} 14. Nf1
{[%clk 0:02:17.2]} 14... h4 {[%clk 0:02:28.6]} 15. Nd2 {[%clk 0:02:08.9]} 15...
b5 {[%clk 0:02:25.1]} 16. Nf3 {[%clk 0:02:04.7]} 16... a5 {[%clk 0:02:18.6]} 17.
O-O {[%clk 0:02:04.8]} 17... Qd8 {[%clk 0:02:16.4]} 18. Bxf5 {[%clk 0:02:02.2]}
18... exf5 {[%clk 0:02:08.7]} 19. e6 {[%clk 0:02:00.4]} 19... O-O {[%clk
0:01:49.5]} 20. Rfe1 {[%clk 0:01:16]} 20... h3 {[%clk 0:01:40.8]} 21. gxh3
{[%clk 0:01:14.9]} 21... Qd6 {[%clk 0:01:40.3]} 22. exf7+ {[%clk 0:01:09]} 22...
Rxf7 {[%clk 0:01:41.1]} 23. Ne5 {[%clk 0:01:09.9]} 23... Nxe5 {[%clk 0:01:39.4]}
24. dxe5 {[%clk 0:01:08]} 24... Qe6 {[%clk 0:01:36]} 25. Kh1 {[%clk 0:01:04]}
25... Rff8 {[%clk 0:01:32]} 26. Rg1 {[%clk 0:01:03.3]} 26... b4 {[%clk 0:01:31]}
27. Qh5 {[%clk 0:00:52.8]} 27... Ra6 {[%clk 0:01:07.9]} 28. axb4 {[%clk
0:00:28.6]} 28... axb4 {[%clk 0:01:05.7]} 29. Rxa6 {[%clk 0:00:29.3]} 29... Qxa6
{[%clk 0:01:07.6]} 30. Bd4 {[%clk 0:00:27.6]} 30... Qc6 {[%clk 0:00:14.9]} 31.
e6 {[%clk 0:00:14]} 31... Bf6 {[%clk 0:00:14.7]} 32. e7 {[%clk 0:00:15.5]} 32...
Ra8 {[%clk 0:00:07.4]} 33. Qg6 {[%clk 0:00:10.3]} 33... Bxd4 {[%clk 0:00:05.9]}
34. Qxc6 {[%clk 0:00:10.9]} 1-0

[Event "*** Titled Tuesday 3|2 Blitz"]
[Site "Chess.com"]
[Date "2015.06.02"]
[Round "4"]
[White "Recombinant"]
[Black "Keaton87"]
[Result "0-1"]
[WhiteElo "2110"]
[BlackElo "2398"]
[TimeControl "180+2"]
[EndTime "11:46:41 PDT"]
[Termination "Keaton87 won by resignation"]

1. d4 {[%clk 0:03:01.9]} 1... Nf6 {[%clk 0:02:34.7]} 2. c4 {[%clk 0:03:02.3]}
2... g6 {[%clk 0:02:35.8]} 3. Nc3 {[%clk 0:03:02.9]} 3... Bg7 {[%clk 0:02:37.5]}
4. Nf3 {[%clk 0:03:01.8]} 4... O-O {[%clk 0:02:38.7]} 5. Bg5 {[%clk 0:03:02.3]}
5... c6 {[%clk 0:02:39.3]} 6. e3 {[%clk 0:03:01.2]} 6... d5 {[%clk 0:02:40.3]}
7. Qb3 {[%clk 0:03:01.6]} 7... Qb6 {[%clk 0:02:40.8]} 8. c5 {[%clk 0:03:01.7]}
8... Qc7 {[%clk 0:02:40.6]} 9. Bf4 {[%clk 0:02:54.1]} 9... Qd8 {[%clk
0:02:40.7]} 10. Bd3 {[%clk 0:02:53]} 10... Nbd7 {[%clk 0:02:38.6]} 11. Qc2
{[%clk 0:02:53.1]} 11... b6 {[%clk 0:02:38.5]} 12. cxb6 {[%clk 0:02:47.9]} 12...
axb6 {[%clk 0:02:39.6]} 13. O-O {[%clk 0:02:49]} 13... Ba6 {[%clk 0:02:34.6]}
14. b3 {[%clk 0:02:34.4]} 14... c5 {[%clk 0:02:31.3]} 15. Bxa6 {[%clk
0:02:31.3]} 15... Rxa6 {[%clk 0:02:31.7]} 16. Nb5 {[%clk 0:02:31.2]} 16... Ne4
{[%clk 0:02:27.5]} 17. a4 {[%clk 0:02:23.6]} 17... h6 {[%clk 0:02:14.9]} 18.
Rac1 {[%clk 0:02:17.7]} 18... g5 {[%clk 0:02:15.8]} 19. Bg3 {[%clk 0:02:18.6]}
19... Nxg3 {[%clk 0:02:14.9]} 20. hxg3 {[%clk 0:02:20.5]} 20... e6 {[%clk
0:02:07.4]} 21. Rfd1 {[%clk 0:02:19.8]} 21... Qe7 {[%clk 0:02:07.9]} 22. Qe2
{[%clk 0:01:50.1]} 22... Raa8 {[%clk 0:02:07]} 23. Nh2 {[%clk 0:01:48.9]} 23...
Rac8 {[%clk 0:02:03.2]} 24. Na7 {[%clk 0:01:44.5]} 24... Ra8 {[%clk 0:02:00.6]}
25. Nb5 {[%clk 0:01:45.1]} 25... Rfd8 {[%clk 0:01:55.7]} 26. Nf3 {[%clk
0:01:38.9]} 26... Nb8 {[%clk 0:01:45.9]} 27. Qc2 {[%clk 0:01:15.1]} 27... Na6
{[%clk 0:01:45.6]} 28. g4 {[%clk 0:01:04.3]} 28... Rac8 {[%clk 0:01:45.8]} 29.
Qe2 {[%clk 0:01:04.4]} 29... Nb4 {[%clk 0:01:47]} 30. Ne1 {[%clk 0:00:43.9]}
30... Nc6 {[%clk 0:01:47.7]} 31. Nf3 {[%clk 0:00:40]} 31... Na5 {[%clk
0:01:48.8]} 32. Qd3 {[%clk 0:00:35]} 32... c4 {[%clk 0:01:50.1]} 33. bxc4 {[%clk
0:00:34.8]} 33... dxc4 {[%clk 0:01:51.3]} 34. Qe4 {[%clk 0:00:31]} 34... Qd7
{[%clk 0:01:45.4]} 35. Ne5 {[%clk 0:00:29.3]} 35... Qd5 {[%clk 0:01:44]} 36.
Qxd5 {[%clk 0:00:24.1]} 36... exd5 {[%clk 0:01:45.9]} 37. Na7 {[%clk 0:00:18.4]}
37... Ra8 {[%clk 0:01:45.7]} 38. Nb5 {[%clk 0:00:17.5]} 38... Nb3 {[%clk
0:01:45.9]} 39. Rc3 {[%clk 0:00:09]} 39... Rxa4 {[%clk 0:01:47.5]} 40. Nc6
{[%clk 0:00:09.9]} 40... Rda8 {[%clk 0:01:44.9]} 41. Ne7+ {[%clk 0:00:10.3]}
41... Kf8 {[%clk 0:01:45.3]} 42. Nxd5 {[%clk 0:00:12.2]} 42... R8a5 {[%clk
0:01:40.4]} 43. Nxb6 {[%clk 0:00:09.5]} 43... Rb4 {[%clk 0:01:33.7]} 44. Rxc4
{[%clk 0:00:02.1]} 44... Rxc4 {[%clk 0:01:31.3]} 45. Nxc4 {[%clk 0:00:03.5]}
45... Rxb5 {[%clk 0:01:33]} 46. Rb1 {[%clk 0:00:04.5]} 46... Nxd4 {[%clk
0:01:32.6]} 47. Rxb5 {[%clk 0:00:05.3]} 47... Nxb5 {[%clk 0:01:34.1]} 48. f3
{[%clk 0:00:06.9]} 48... Ke7 {[%clk 0:01:34.4]} 49. Kf2 {[%clk 0:00:08.4]} 49...
Nd6 {[%clk 0:01:35.6]} 50. Nd2 {[%clk 0:00:10.1]} 50... Ke6 {[%clk 0:01:36.8]}
51. Nf1 {[%clk 0:00:11.4]} 51... Be5 {[%clk 0:01:36.5]} 52. g3 {[%clk
0:00:12.2]} 52... Bc3 {[%clk 0:01:37.2]} 53. f4 {[%clk 0:00:13]} 53... Ne4+
{[%clk 0:01:36.6]} 54. Kf3 {[%clk 0:00:13.8]} 54... Nd2+ {[%clk 0:01:37.1]} 55.
Nxd2 {[%clk 0:00:14.9]} 55... Bxd2 {[%clk 0:01:39]} 56. Ke4 {[%clk 0:00:16.3]}
56... Be1 {[%clk 0:01:40.4]} 57. Kf3 {[%clk 0:00:16.3]} 57... Kd5 {[%clk
0:01:41]} 58. Kg2 {[%clk 0:00:15.5]} 58... Ke4 {[%clk 0:01:41.9]} 59. Kh3 {[%clk
0:00:16.1]} 59... Kxe3 {[%clk 0:01:42.3]} 60. f5 {[%clk 0:00:16.8]} 60... Kf3
{[%clk 0:01:40.9]} 61. f6 {[%clk 0:00:18.1]} 61... Bf2 {[%clk 0:01:39.8]} 62.
Kh2 {[%clk 0:00:18.9]} 62... Bxg3+ {[%clk 0:01:40.6]} 63. Kh3 {[%clk 0:00:20.4]}
63... Bh4 {[%clk 0:01:41.7]} 0-1